Cogmind - Beta 16 @@@ ROGUE MODE // 2025.11.30 @ 21:39:27 Player: OldWhovian Result: Self-destructed Performance ------------- Evolutions (1) 500 Regions Visited (3) 600 Robots Destroyed (24) 120 Value Destroyed (752) 752 Prototype IDs (2) 40 Alien Tech Used (0) 0 Bonus (0) 0 TOTAL SCORE: 2012 Bonus ------- None Cogmind --------- Core Integrity 214/400 Matter 277/300 Energy 53/265 System Corruption 0% Temperature Cool (0) Movement Rolling (90) Location -9/Mines Parts ------- > --- POWER (1) -------- Improved Ion Engine > --- PROPULSION (2) --- Armored Wheel Armored Wheel > --- UTILITY (4) ------ Medium Storage Unit Visual Processing Unit > --- WEAPON (2) ------- Assault Rifle > --- INVENTORY (10) --- Light Nuclear Core Armored Wheel Armored Wheel Armored Wheel Heat Sink EM Shotgun Spread Laser Advanced Beam Cannon Shotgun Peak State ------------ > --- POWER ------------ Improved Ion Engine > --- PROPULSION ------- Armored Wheel Armored Wheel > --- UTILITY ---------- Heat Sink Medium Storage Unit Visual Processing Unit Shield Generator > --- WEAPON ----------- Medium Laser Assault Rifle > --- INVENTORY -------- Improved Ion Engine Light Nuclear Core Armored Wheel Armored Wheel Armored Wheel Heat Sink Spread Laser Advanced Beam Cannon Assault Rifle Shotgun [Rating: 16] Favorites ----------- Power Ion Engine Engine Ion Engine Propulsion Armored Wheel Wheel Armored Wheel Utility Heat Sink Device Heat Sink Storage Medium Storage Unit Processor Visual Processing Unit Protection Light Armor Plating Weapon Medium Laser Energy Gun Medium Laser Ballistic Gun Assault Rifle Build | -11 -10 -9 -9 ------- Run | Yrd Mat Mat Min Slots Evolved 2 | . . 2 . Power . | . . . . Propulsion . | . . . . Utility 2 | . . 2 . Weapon . | . . . . Parts Attached 22 | 6 3 11 2 Power 4 | 1 . 2 1 Engine 4 | 1 . 2 1 Core . | . . . . Reactor . | . . . . Propulsion 5 | 2 . 2 1 Treads . | . . . . Leg . | . . . . Wheel 5 | 2 . 2 1 Hover . | . . . . Flight . | . . . . Utility 8 | 1 2 5 . Device 4 | . 1 3 . Storage 2 | 1 1 . . Processor 1 | . . 1 . Hackware . | . . . . Protection 1 | . . 1 . Artifact . | . . . . Weapon 5 | 2 1 2 . Energy Gun 2 | 1 . 1 . Energy Cannon . | . . . . Ballistic Gun 3 | 1 1 1 . Ballistic Cannon . | . . . . Launcher . | . . . . Special Weapon . | . . . . Impact Weapon . | . . . . Slashing Weapon . | . . . . Piercing Weapon . | . . . . Special Melee Weapon . | . . . . Unidentified Prototypes . | . . . . Parts Lost 6 | . . 3 3 Power 1 | . . 1 . Propulsion . | . . . . Utility 3 | . . 1 2 Weapon 2 | . . 1 1 Highest Loss Streak 3 | . . 1 3 To Critical Strikes . | . . . . Average Backups 8 | 2 6 9 9 Power 1 | . 1 1 1 Propulsion 3 | 1 4 3 3 Utility . | . . 1 1 Weapon 2 | . 1 2 4 Tool/Special . | . . . . Unused Backups 18 | . 4 7 7 Power 2 | . . 1 1 Propulsion 12 | . 4 6 2 Utility . | . . . . Weapon 4 | . . . 4 Tool/Special . | . . . . Average Slot Usage (%) 96 | . 96 96 99 Engine 11 | . 14 11 11 Wheel 23 | . 28 22 22 Device 14 | . 10 14 22 Storage 11 | . 14 11 11 Processor 6 | . . 8 11 Protection 3 | . . 5 . Energy Gun 11 | . 14 10 10 Ballistic Gun 11 | . 14 11 11 Peak Build Rating 16 | 6 7 16 16 Average Rating 10 | 3 6 12 14 On Entrance 7 | . 6 7 16 Avg Prop Armor Cover (%) . | . . . . Naked Turns . | . . . . Heaviest Build 25 | 13 20 25 24 Greatest Support 26 | 26 26 26 24 Greatest Overweight (x) 1 | . . 1 . Average Overweight (x) . | . . . . Largest Inventory Capacity 10 | 8 10 10 10 Average Capacity 9 | 6 8 10 10 Most Carried 10 | 6 9 10 10 Average Carried 8 | 3 6 9 9 Final Capacity 10 | 8 10 10 10 Final Carried 10 | 6 8 10 9 Class Distribution -------------------- 100% | Mutant Dominant Class ---------------- Mutant | -10/Materials Mutant | -9/Materials Mutant | -9/Mines Resources | -11 -10 -9 -9 ----------- Run | Yrd Mat Mat Min Matter Collected 599 | 205 113 281 . Remotely . | . . . . Salvage Created 960 | . 176 768 16 Parts 64 | . 11 53 . Haulers Intercepted 2 | . 1 1 . Recyclers Shooed . | . . . . Parts Field Recycled . | . . . . Retrieved Matter . | . . . . Parts Self-Destructed . | . . . . Prevented . | . . . . Parts Restored . | . . . . Kills | -11 -10 -9 -9 ------- Run | Yrd Mat Mat Min Combat Hostiles Destroyed 23 | . 3 19 1 Guns 23 | . 3 19 1 Classes Destroyed 5 | . 2 2 1 Hauler 2 | . 1 1 . Swarmer 3 | . . 3 . Grunt 16 | . 3 13 . Sentry 3 | . . 3 . Assembled 1 | . . . 1 Best Kill Streak 3 | . 2 3 1 Combat Bots Only 3 | . 2 3 1 Max Kills in Single Turn 1 | . 1 1 1 Gunslinging . | . . . . Exploded . | . . . . Melee . | . . . . Uniques/NPCs Destroyed . | . . . . Combat | -11 -10 -9 -9 -------- Run | Yrd Mat Mat Min Hostile Shots Fired 107 | . 7 89 11 Missed 30 | . . 28 2 Hits 77 | . 7 61 9 Melee 3 | . . . 3 Projectile 74 | . 7 61 6 AOE 4 | . . . 4 Critical Strikes 2 | . . 1 1 Damage Taken 1102 | . 88 759 255 Core 186 | . . 132 54 Absorbed by Shields 101 | . . 33 68 Core Remaining (%) 100 | 100 100 . . Volleys Fired 81 | . 20 55 6 Largest 2 | . 2 2 2 Hottest 70 | . 70 70 70 Shots Fired 162 | . 40 110 12 Gun 162 | . 40 110 12 Cannon . | . . . . Launcher . | . . . . Special . | . . . . Kinetic 81 | . 20 55 6 Thermal 81 | . 20 55 6 Explosive . | . . . . Electromagnetic . | . . . . Robot Hit Streak 14 | . 7 14 4 Robot Miss Streak 5 | . 4 5 2 Penetration Max . | . . . . Secondary Targets 1 | . . 1 . Max Gunslinging Chain 1 | . . 1 . Shots Hit Robots 119 | . 26 85 8 Core Hits 54 | . 10 42 2 Critical Kills . | . . . . Critical Parts Destroyed . | . . . . Critical Strikes 5 | . . 3 2 Burn 5 | . . 3 2 Melee Attacks . | . . . . Impact . | . . . . Slashing . | . . . . Piercing . | . . . . Sneak Attacks . | . . . . Combat Hostiles . | . . . . Follow-up Attacks . | . . . . Damage Inflicted 1450 | . 292 1062 96 Guns 1440 | . 292 1052 96 Cannons . | . . . . Explosions . | . . . . Melee . | . . . . Ramming 10 | . . 10 . Kinetic 741 | . 146 549 46 Thermal 699 | . 146 503 50 Explosive . | . . . . Electromagnetic . | . . . . Impact . | . . . . Slashing . | . . . . Piercing . | . . . . Highest Corruption 1 | . 1 . . Average Corruption 1 | . 1 . . Corruption Purged . | . . . . Corruption Blocked . | . . . . Overload Shots . | . . . . Overflow Damage . | . . . . Projectiles . | . . . . Explosions . | . . . . Melee . | . . . . Knockbacks . | . . . . Impact . | . . . . Kinetic . | . . . . Secondary . | . . . . Self-Inflicted Damage 5 | . . 5 . Shots . | . . . . Rammed 1 | . . 1 . Targets Rammed 1 | . . 1 . Kicked . | . . . . Crushed . | . . . . Highest Temperature 51 | . 46 10 51 Average Temperature 16 | . 14 4 24 Received Heat Transfer 466 | . 48 323 95 Siege Activations . | . . . . Martial Activations . | . . . . Shielding Activations . | . . . . Robots Disrupted . | . . . . Combat Hostiles . | . . . . Robots Corrupted . | . . . . Combat Hostiles . | . . . . Parts Fried . | . . . . Impact Corruptions . | . . . . Robots Melted . | . . . . Combat Hostiles . | . . . . Parts Melted 4 | . 1 3 . Heat Transferred 2442 | . 444 1702 296 Parts Sabotaged . | . . . . Parts Stolen . | . . . . Parts Stripped . | . . . . Power Chain Reactions . | . . . . Alert | -11 -10 -9 -9 ------- Run | Yrd Mat Mat Min Maximum Alert Level 1 | . . 1 . Low Security (%) 85 | 100 100 76 100 Level 1 14 | . . 23 . Level 2 . | . . . . Level 3 . | . . . . Level 4 . | . . . . Level 5 . | . . . . High Security . | . . . . Max Security . | . . . . Peak Influence 292 | . 50 292 52 Initial 52 | . . . 52 Average 70 | . 9 107 28 Influence Increases 750 | . 87 663 . Destroy 0b10 Robot/C 440 | . 60 380 . Destroy 0b10 Robot/NC 10 | . 5 5 . Destroy Leader 114 | . 22 92 . Successful Hack 6 | . . 6 . Lose Combat Pursuer 180 | . . 180 . Influence Decreases 750 | . 87 529 134 Entered New Map 82 | . . . 82 Time Decay 486 | . 87 349 50 Lost Part 32 | . . 30 2 Purge Threat 150 | . . 150 . Squads Dispatched 4 | . 1 3 . Investigation 2 | . . 2 . Extermination . | . . . . Reinforcement 2 | . 1 1 . Assault . | . . . . Garrison . | . . . . Intercept . | . . . . Searches Triggered . | . . . . Construction Impeded . | . . . . Haulers Reinforced . | . . . . Active Scanning Responses . | . . . . Cargo Convoy Interrupts . | . . . . Stealth | -11 -10 -9 -9 --------- Run | Yrd Mat Mat Min Distress Signals 1 | . . 1 . Communications Jammed . | . . . . Distress Signals . | . . . . Times Spotted 49 | . 7 34 8 Peak Tracking Total 8 | . 2 8 6 Tactical Retreats 5 | . . 4 1 Traps | -11 -10 -9 -9 ------- Run | Yrd Mat Mat Min Traps Triggered 2 | . 1 1 . Indirectly . | . . . . Trap Hack Attempts . | . . . . Triggered . | . . . . Disarmed . | . . . . Reprogrammed . | . . . . Reused . | . . . . Traps Extracted . | . . . . Installed . | . . . . Triggered . | . . . . Machines | -11 -10 -9 -9 ---------- Run | Yrd Mat Mat Min Machines Disabled . | . . . . Max in Single Turn . | . . . . Machines Repaired . | . . . . Machines Dismantled . | . . . . Machines Sabotaged . | . . . . Overloaded Fab Kills . | . . . . Hacking | -11 -10 -9 -9 --------- Run | Yrd Mat Mat Min Machines Accessed 5 | . 2 3 . Terminals 5 | . 2 3 . Fabricators . | . . . . Repair Stations . | . . . . Recycling Units . | . . . . Scanalyzers . | . . . . Garrison Access . | . . . . Total Hacks 15 | . 5 10 . Successful 6 | . 1 5 . Failed 9 | . 4 5 . Catastrophic 3 | . 1 2 . Database Lockouts . | . . . . Manual 9 | . 4 5 . Terminals 15 | . 5 10 . Fabricators . | . . . . Repair Stations . | . . . . Recycling Units . | . . . . Scanalyzers . | . . . . Garrison Access . | . . . . Terminal Hacks 6 | . 1 5 . Prototype ID Bank 1 | . . 1 . Alert Level 1 | . . 1 . Unreport Threat 1 | . . 1 . Locate Traps 2 | . 1 1 . Zone Layout 1 | . . 1 . Fabricator Hacks . | . . . . Repair Station Hacks . | . . . . Recycling Unit Hacks . | . . . . Scanalyzer . | . . . . Garrison Access Hacks . | . . . . Unauthorized Hacks . | . . . . Terminals . | . . . . Fabricators . | . . . . Repair Stations . | . . . . Recycling Units . | . . . . Scanalyzers . | . . . . Garrison Access . | . . . . Data Cores Recovered . | . . . . Used . | . . . . Hacking Detections 5 | . 2 3 . Full Trace Events 2 | . 1 1 . Feedback Events . | . . . . Feedback Blocked . | . . . . Robot Schematics Acquired . | . . . . Robots Built . | . . . . Authchips . | . . . . Time . | . . . . Total Robot Build Rating . | . . . . Part Schematics Acquired . | . . . . Parts Built . | . . . . Authchips . | . . . . Time . | . . . . Total Part Build Rating . | . . . . Part Studies Acquired . | . . . . Parts Repaired . | . . . . Time . | . . . . Parts Recycled . | . . . . Recycled Matter . | . . . . Retrieved Matter . | . . . . Retrieved Components . | . . . . Parts Scanalyzed . | . . . . Part Schematics Acquired . | . . . . Parts Damaged . | . . . . Bothacking | -11 -10 -9 -9 ------------ Run | Yrd Mat Mat Min Used RIF Installer . | . . . . Robots Hacked . | . . . . Non-combat . | . . . . Combat . | . . . . Robot Hacks Applied . | . . . . Relay Couplers Released . | . . . . Fabnet Peak Effective % . | . . . . Robots Rewired . | . . . . Allies Hacked . | . . . . Hacks Repelled . | . . . . Allies | -11 -10 -9 -9 -------- Run | Yrd Mat Mat Min Total Allies . | . . . . Largest Group . | . . . . Highest-Rated Group . | . . . . Highest-Rated Ally . | . . . . Total Orders . | . . . . Ally Attacks . | . . . . Total Damage . | . . . . Kills . | . . . . Allies Corrupted . | . . . . Allies Melted . | . . . . Intel | -11 -10 -9 -9 ------- Run | Yrd Mat Mat Min Active Infowar (turns) 824 | . . 712 112 Optics 824 | . . 712 112 Robot Analysis Total . | . . . . Derelict Logs Recovered . | . . . . Drone Launches . | . . . . Drone Recoveries . | . . . . Exploration | -11 -10 -9 -9 ------------- Run | Yrd Mat Mat Min Turns Passed 1478 | 64 400 902 112 Spaces Moved 1089 | 57 301 631 100 Core 3 | 3 . . . Treads . | . . . . Legs . | . . . . Wheels 1086 | 54 301 631 100 Hover . | . . . . Flight . | . . . . Fastest Speed 50 | 50 90 90 90 Average Speed 90 | 83 90 91 90 Slowest Speed 105 | 90 90 105 90 Overloaded Moves . | . . . . Propulsion Burnouts . | . . . . Robots Hopped . | . . . . Potential Cave-ins . | . . . . Cave-ins Triggered . | . . . . Exploration Rate (%) 24 | 4 38 32 22 Regions Visited 3 Branch Regions 1 Pre-discovered Areas 1 | . . . 1 Known Exits Taken . | . . . . Unknown Exits Taken 3 | 1 1 1 . Scrap Searched . | . . . . Spaces Dug . | . . . . Terrain Destroyed . | . . . . Melee . | . . . . Projectile . | . . . . AOE . | . . . . Terrain Rammed . | . . . . Walls Destroyed . | . . . . Machines Disabled . | . . . . Actions | -11 -10 -9 -9 --------- Run | Yrd Mat Mat Min Total 1419 | 71 393 846 109 Wait 173 | . 55 118 . Move 1086 | 56 300 630 100 Hop . | . . . . Pick Up 37 | 9 9 19 . Fast Attach 3 | 3 . . . Attach 9 | 3 1 5 . Detach . | . . . . Swap 10 | . 2 6 2 Drop 19 | . 6 12 1 Fire 81 | . 20 55 6 Melee . | . . . . Ram 1 | . . 1 . Kick . | . . . . Crush . | . . . . Escape Stasis . | . . . . Rewire . | . . . . Trap . | . . . . Miscellaneous . | . . . . Route ------- -11/Scrapyard -10/Materials -9/Materials -9/Mines History --------- Turn | Location | Event 29 | -11/Scrapyard | Discovered new exit (range 15) 65 | -11/Scrapyard | Entered Materials 301 | -10/Materials | Build established: Mutant 302 | -10/Materials | Discovered new exit (range 3) 465 | -10/Materials | Entered another Materials area 465 | -9/Materials | Evolved 2 slots: Utility x2 1273 | -9/Materials | Discovered new exit (range 19) 1367 | -9/Materials | Entered Mines 1374 | -9/Mines | Met a Derelict bent on vengeance 1439 | -9/Mines | Assembled infested the area 1440 | -9/Mines | Learned location of Storage (-7) 1444 | -9/Mines | Assisted by a Guerilla fighting off Assembled 1479 | -9/Mines | Self-destructed Last Messages --------------- as-10560 destroyed. HV Slug penetrates as-94572. as-94572 suffers critical hit (Destroy). as-94572 destroyed. HV Slug penetrates as-35876. as-35876 suffers critical hit (Destroy). as-35876 destroyed. HV Slug penetrates Wall. as-90400 suffers critical hit (Burn). Critical hit (Burn: +80). HV Slug penetrates Wall. as-47592 suffers critical hit (Destroy). Destroyed Asb. F-torch. as-89662 suffers critical hit (Burn). as-89662 destroyed. Med. Laser destroyed. D-53 Grenadier knocked back. 4Y-DPI(h) destroyed. Shield Generator destroyed. Heat Sink destroyed. Map ----- +----------------------------------------------------+ | | | | | | | | | | | | | | | | | | | | | | | | | | | ?????????????????????????????????????????????????? | | ?????????????????????????????????????????????????? | | ?????????????????????????????????????????????????? | | ?????????????????????????????????????????????????? | | ???????????????######????????????????????????????? | | ?????????????### ##???????????????????????????? | | ????????????## #???????????????????????????? | | ????????????# #???????????????????????????? | | ????????????# #?##########?????????????????? | | ?????????????# #?## #####?????????????? | | ?????????????### #### ######????????? | | ?????????????# # #????????? | | ????????????## # @ #### #### #?????#### | | ????????????# = ##??# #??# #????## | | ????????????### %* # #???# #??# #????# | | ????????????# ] #???# #??# ###### | | ????????????## ####### #??# | | ?????????????# ###### ## #??####### | | ?????????????# d #???# #????????## | | ?????????????## d #???# #?????????##### | | ??????????????# #??# ??????????? | | ??????????????# % #??# #????????? | | ??????????????#; #??## ####### #????????? | | ??????????????##% #???######???????#????????? | | ??????????????? % ##?????????????????????????? | | ?????????????? % ####??????????????????????????? | | ????????????? ##?????????????????????????????? | | ????????????? #??????????????????????????????? | | ?????????????? ###??????????????????????????????? | | ?????????????? ????????????????????????????????? | | ?????????????? ????????????????????????????????? | | ??????????????? #????????????????????????????????? | | ???????????????#?????????????????????????????????? | | ?????????????????????????????????????????????????? | | ?????????????????????????????????????????????????? | | ?????????????????????????????????????????????????? | | ?????????????????????????????????????????????????? | +----------------------------------------------------+ Best States ------------- Heat Dissipation 48 Energy Generation 12 Energy Capacity 265 Matter Stores 300 Matter Capacity 300 Sight Range 18 Terrain Scan Density 10 Armor Coverage 150 Evasion (%) 44 Item Schematics ----------------- None Robot Schematics ------------------ None Fabricated ------------ Nothing Repaired ---------- Nothing Studied --------- None Alien Tech Used ----------------- None Achievements -------------- None Challenges ------------ None Game ------ Seed StorageForceMapper Manual? 0 Play Time 00:27:43 Cumulative 20.2 hours Start 2025.11.30 @ 21:13:01 End 2025.11.30 @ 21:39:27 Sessions 1 Manual Loads 0 Difficulty Rogue Special Mode None Game No. 25 Rogue 25 Adventurer 0 Explorer 0 Win Type - Total 0 Types 0/0/0/0/0/0/0/0/0/0 Lore% 11 Gallery% 14 Achievement% 13 Wizard Run 0 Options --------- Layout 0 ASCII 0 Keyboard 0 Movement Arrows Keybinds 0 Fullscreen 2 Font 36/Smallcaps Map View 76x50 Zoom Use 0% Tactical HUD 0 Map Filters NONE Filters NONE Steam 1 RUN: 5c793009-11a5-49e9-b5cb-d697ee349b12